[Event "*** Titled Tuesday Blitz"]
[Site "Chess.com"]
[Date "2020.02.04"]
[Round "4"]
[White "arjwezhrtdrz"]
[Black "HanSchut"]
[Result "0-1"]
[WhiteElo "2239"]
[BlackElo "2331"]
[TimeControl "180+2"]
[EndTime "13:46:42 PST"]
[Termination "HanSchut won by resignation"]

1. e4 {[%clk 0:03:01.3]} 1... c5 {[%clk 0:03:00.3]} 2. c3 {[%clk 0:03:00.5]}
2... g6 {[%clk 0:03:00.2]} 3. Nf3 {[%clk 0:03:01.1]} 3... Bg7 {[%clk 0:03:01.2]}
4. d3 {[%clk 0:03:01.8]} 4... Nc6 {[%clk 0:02:59.6]} 5. a4 {[%clk 0:03:02.9]}
5... e6 {[%clk 0:03:01]} 6. g3 {[%clk 0:03:03.3]} 6... Nge7 {[%clk 0:03:00.7]}
7. Bg2 {[%clk 0:03:04.3]} 7... O-O {[%clk 0:03:01.4]} 8. O-O {[%clk 0:03:05.2]}
8... Rb8 {[%clk 0:03:02]} 9. h3 {[%clk 0:03:05.5]} 9... d6 {[%clk 0:03:00.9]}
10. Nh2 {[%clk 0:03:06.3]} 10... a6 {[%clk 0:02:57.6]} 11. f4 {[%clk 0:03:05.8]}
11... b5 {[%clk 0:02:56.7]} 12. axb5 {[%clk 0:03:06.5]} 12... axb5 {[%clk
0:02:57.9]} 13. Be3 {[%clk 0:03:06.7]} 13... b4 {[%clk 0:02:58.7]} 14. Nd2
{[%clk 0:03:03.4]} 14... bxc3 {[%clk 0:02:58.6]} 15. bxc3 {[%clk 0:03:04.6]}
15... Bxc3 {[%clk 0:02:59.4]} 16. Rc1 {[%clk 0:03:05.9]} 16... Bd4 {[%clk
0:02:56.4]} 17. Bxd4 {[%clk 0:03:00]} 17... Nxd4 {[%clk 0:02:58.3]} 18. Nhf3
{[%clk 0:02:59]} 18... Nec6 {[%clk 0:02:54.6]} 19. Nxd4 {[%clk 0:02:56.9]} 19...
Nxd4 {[%clk 0:02:55.7]} 20. Nf3 {[%clk 0:02:58.8]} 20... Nxf3+ {[%clk
0:02:50.8]} 21. Bxf3 {[%clk 0:02:58.5]} 21... Qb6 {[%clk 0:02:40.4]} 22. Kh2
{[%clk 0:02:55.1]} 22... Qb3 {[%clk 0:02:40.9]} 23. Qxb3 {[%clk 0:02:46.4]}
23... Rxb3 {[%clk 0:02:41.4]} 24. Rfd1 {[%clk 0:02:43.7]} 24... Ba6 {[%clk
0:02:40.8]} 25. d4 {[%clk 0:02:40.9]} 25... Rxf3 {[%clk 0:02:39.3]} 26. dxc5
{[%clk 0:02:41]} 26... dxc5 {[%clk 0:02:37.4]} 27. Rxc5 {[%clk 0:02:41.8]} 27...
Rb8 {[%clk 0:02:31.3]} 28. Rd2 {[%clk 0:02:41.6]} 28... Rbb3 {[%clk 0:02:26.1]}
29. Rg5 {[%clk 0:02:41]} 29... h6 {[%clk 0:02:16.4]} 30. Rg4 {[%clk 0:02:41.7]}
30... Rfd3 {[%clk 0:02:13.9]} 31. Rf2 {[%clk 0:02:38.6]} 31... Rf3 {[%clk
0:02:10.1]} 32. Rd2 {[%clk 0:02:38.7]} 32... Bd3 {[%clk 0:02:05]} 33. e5 {[%clk
0:02:39]} 33... Bf5 {[%clk 0:02:03.7]} 0-1

[Event "*** Titled Tuesday Blitz"]
[Site "Chess.com"]
[Date "2020.02.04"]
[Round "4"]
[White "DenishevM"]
[Black "vellottiwizard"]
[Result "1-0"]
[WhiteElo "2528"]
[BlackElo "2656"]
[TimeControl "180+2"]
[EndTime "13:46:46 PST"]
[Termination "DenishevM won by resignation"]

1. d4 {[%clk 0:03:01.9]} 1... Nf6 {[%clk 0:03:00.5]} 2. Nf3 {[%clk 0:03:02.6]}
2... e6 {[%clk 0:03:00.6]} 3. c4 {[%clk 0:03:03.6]} 3... b6 {[%clk 0:03:02]} 4.
a3 {[%clk 0:03:03.7]} 4... Bb7 {[%clk 0:03:03.1]} 5. Nc3 {[%clk 0:03:05.3]} 5...
d5 {[%clk 0:03:04.7]} 6. cxd5 {[%clk 0:03:06.8]} 6... Nxd5 {[%clk 0:03:06.6]} 7.
e3 {[%clk 0:03:06.5]} 7... Nxc3 {[%clk 0:03:04.1]} 8. bxc3 {[%clk 0:03:08.4]}
8... Be7 {[%clk 0:03:05.4]} 9. Bd3 {[%clk 0:03:09.3]} 9... O-O {[%clk 0:03:03]}
10. O-O {[%clk 0:03:06.6]} 10... c5 {[%clk 0:03:04.4]} 11. e4 {[%clk 0:03:07.9]}
11... Qc8 {[%clk 0:03:05]} 12. Qe2 {[%clk 0:03:06.8]} 12... Ba6 {[%clk
0:03:05.8]} 13. Bb2 {[%clk 0:03:06]} 13... Bxd3 {[%clk 0:03:06.6]} 14. Qxd3
{[%clk 0:03:07.9]} 14... Qa6 {[%clk 0:03:08.2]} 15. Qe3 {[%clk 0:03:06.7]} 15...
Re8 {[%clk 0:03:08]} 16. Ne5 {[%clk 0:03:06.4]} 16... f6 {[%clk 0:02:57]} 17.
Nd3 {[%clk 0:02:58.3]} 17... Nc6 {[%clk 0:02:56.1]} 18. d5 {[%clk 0:02:47.9]}
18... exd5 {[%clk 0:02:47.1]} 19. exd5 {[%clk 0:02:49.8]} 19... Bf8 {[%clk
0:02:45.4]} 20. Qh3 {[%clk 0:02:47.8]} 20... Na5 {[%clk 0:02:43.3]} 21. Nf4
{[%clk 0:02:40.8]} 21... Qc4 {[%clk 0:02:42.2]} 22. Ne6 {[%clk 0:02:33]} 22...
Qxd5 {[%clk 0:02:38.1]} 23. Nc7 {[%clk 0:02:31.7]} 23... Qb3 {[%clk 0:02:38.7]}
24. Nxe8 {[%clk 0:02:27.8]} 24... Rxe8 {[%clk 0:02:39.3]} 25. Rae1 {[%clk
0:02:21.8]} 25... Rd8 {[%clk 0:02:23.1]} 26. Bc1 {[%clk 0:02:15.2]} 26... Qd5
{[%clk 0:02:15.8]} 27. Qg4 {[%clk 0:02:05.6]} 27... Nc4 {[%clk 0:02:00.7]} 28.
Rd1 {[%clk 0:02:04.4]} 1-0

[Event "*** Titled Tuesday Blitz"]
[Site "Chess.com"]
[Date "2020.02.04"]
[Round "4"]
[White "VladimirBelous"]
[Black "Indianlad"]
[Result "0-1"]
[WhiteElo "2745"]
[BlackElo "2939"]
[TimeControl "180+2"]
[EndTime "13:46:50 PST"]
[Termination "Indianlad won by checkmate"]

1. c4 {[%clk 0:03:01.9]} 1... Nf6 {[%clk 0:03:01.4]} 2. Nf3 {[%clk 0:03:03]}
2... g6 {[%clk 0:03:02.9]} 3. g3 {[%clk 0:03:04.4]} 3... Bg7 {[%clk 0:03:04.8]}
4. Bg2 {[%clk 0:03:06.3]} 4... O-O {[%clk 0:03:06.4]} 5. O-O {[%clk 0:03:08.2]}
5... c5 {[%clk 0:03:07.9]} 6. Nc3 {[%clk 0:03:09.3]} 6... d5 {[%clk 0:03:08.6]}
7. cxd5 {[%clk 0:03:08.8]} 7... Nxd5 {[%clk 0:03:10.5]} 8. Re1 {[%clk
0:03:04.9]} 8... Nc6 {[%clk 0:03:10.6]} 9. Nxd5 {[%clk 0:03:01.9]} 9... Qxd5
{[%clk 0:03:10.2]} 10. d3 {[%clk 0:03:03.8]} 10... Qh5 {[%clk 0:03:07.5]} 11. a3
{[%clk 0:02:59.3]} 11... Bh3 {[%clk 0:03:07.6]} 12. Bxh3 {[%clk 0:02:57.4]}
12... Qxh3 {[%clk 0:03:08.5]} 13. Be3 {[%clk 0:02:59.3]} 13... Bxb2 {[%clk
0:03:05.2]} 14. Rb1 {[%clk 0:02:59.4]} 14... Bc3 {[%clk 0:03:06.5]} 15. Bd2
{[%clk 0:02:47.3]} 15... Bxd2 {[%clk 0:03:07.5]} 16. Qxd2 {[%clk 0:02:49.2]}
16... b6 {[%clk 0:03:09.1]} 17. Rec1 {[%clk 0:02:51.1]} 17... Rad8 {[%clk
0:03:08.4]} 18. Rc4 {[%clk 0:02:52.6]} 18... f6 {[%clk 0:03:04.1]} 19. Qe3
{[%clk 0:02:37.1]} 19... Rd6 {[%clk 0:02:59.8]} 20. d4 {[%clk 0:02:19.4]} 20...
cxd4 {[%clk 0:02:59.5]} 21. Nxd4 {[%clk 0:02:06.1]} 21... Ne5 {[%clk 0:03:00.8]}
22. Rc7 {[%clk 0:02:07.5]} 22... Rfd8 {[%clk 0:02:54.5]} 23. Qb3+ {[%clk
0:01:50.4]} 23... Kh8 {[%clk 0:02:54.8]} 24. e3 {[%clk 0:01:44.6]} 24... g5
{[%clk 0:02:41.9]} 25. Rxe7 {[%clk 0:01:19.6]} 25... g4 {[%clk 0:02:43.1]} 26.
Re6 {[%clk 0:01:06.5]} 26... Nf3+ {[%clk 0:02:42.4]} 27. Nxf3 {[%clk 0:01:02.4]}
27... gxf3 {[%clk 0:02:44.3]} 28. Rxd6 {[%clk 0:01:00.3]} 28... Qg2# {[%clk
0:02:45.4]} 0-1

[Event "*** Titled Tuesday Blitz"]
[Site "Chess.com"]
[Date "2020.02.04"]
[Round "4"]
[White "LogoCzar"]
[Black "RestartingChess"]
[Result "1-0"]
[WhiteElo "2516"]
[BlackElo "2350"]
[TimeControl "180+2"]
[EndTime "13:47:15 PST"]
[Termination "LogoCzar won by resignation"]

1. e4 {[%clk 0:03:01.9]} 1... d5 {[%clk 0:02:53.8]} 2. exd5 {[%clk 0:03:02.7]}
2... Qxd5 {[%clk 0:02:55.7]} 3. Nc3 {[%clk 0:03:04.2]} 3... Qd8 {[%clk
0:02:56.4]} 4. d4 {[%clk 0:03:05.5]} 4... Nf6 {[%clk 0:02:57.6]} 5. Nf3 {[%clk
0:03:05.2]} 5... Bf5 {[%clk 0:02:58.8]} 6. Ne5 {[%clk 0:03:04.2]} 6... e6 {[%clk
0:02:58.5]} 7. g4 {[%clk 0:02:58.4]} 7... Bg6 {[%clk 0:02:56.8]} 8. h4 {[%clk
0:02:58.7]} 8... Bd6 {[%clk 0:02:56]} 9. Qe2 {[%clk 0:02:37.3]} 9... h6 {[%clk
0:02:28.1]} 10. Nxg6 {[%clk 0:02:35]} 10... fxg6 {[%clk 0:02:30]} 11. Bg2 {[%clk
0:02:29.8]} 11... Nc6 {[%clk 0:02:25.5]} 12. Bxc6+ {[%clk 0:02:10.4]} 12... bxc6
{[%clk 0:01:59.9]} 13. Qxe6+ {[%clk 0:02:06.7]} 13... Qe7 {[%clk 0:02:00.6]} 14.
Qxe7+ {[%clk 0:02:04.9]} 14... Kxe7 {[%clk 0:02:02.5]} 15. f3 {[%clk 0:02:02]}
15... Rab8 {[%clk 0:01:56.6]} 16. Kf2 {[%clk 0:01:59.3]} 16... Bb4 {[%clk
0:01:54]} 17. Ne4 {[%clk 0:01:56.3]} 17... Nxe4+ {[%clk 0:01:51.9]} 18. fxe4
{[%clk 0:01:57.1]} 18... Rhf8+ {[%clk 0:01:53.8]} 19. Kg2 {[%clk 0:01:53.2]}
19... c5 {[%clk 0:01:45.2]} 20. c3 {[%clk 0:01:51.9]} 20... cxd4 {[%clk
0:01:39.5]} 21. cxb4 {[%clk 0:01:48.8]} 21... Rxb4 {[%clk 0:01:40.5]} 22. a3
{[%clk 0:01:45.8]} 22... Rb3 {[%clk 0:01:41.1]} 23. Rf1 {[%clk 0:01:41.9]} 23...
Rg3+ {[%clk 0:01:34.3]} 24. Kxg3 {[%clk 0:01:41.6]} 24... Rxf1 {[%clk
0:01:35.3]} 25. Bg5+ {[%clk 0:01:42.2]} 25... hxg5 {[%clk 0:01:37.2]} 1-0

[Event "*** Titled Tuesday Blitz"]
[Site "Chess.com"]
[Date "2020.02.04"]
[Round "4"]
[White "Raspadsistema"]
[Black "mitrabhaa"]
[Result "1-0"]
[WhiteElo "2801"]
[BlackElo "2562"]
[TimeControl "180+2"]
[EndTime "13:47:27 PST"]
[Termination "Raspadsistema won on time"]

1. e4 {[%clk 0:03:01.9]} 1... c6 {[%clk 0:02:26.9]} 2. d4 {[%clk 0:03:01.6]}
2... d5 {[%clk 0:01:54]} 3. e5 {[%clk 0:03:01.6]} 3... Bf5 {[%clk 0:01:47.3]} 4.
h4 {[%clk 0:03:02.3]} 4... h5 {[%clk 0:01:12]} 5. c4 {[%clk 0:03:02]} 5... e6
{[%clk 0:01:07.2]} 6. Nc3 {[%clk 0:03:03.1]} 6... Ne7 {[%clk 0:01:00.6]} 7. Nge2
{[%clk 0:03:04]} 7... Nd7 {[%clk 0:00:52.3]} 8. Ng3 {[%clk 0:02:55.2]} 8... Bg6
{[%clk 0:00:45]} 9. Bg5 {[%clk 0:02:56.3]} 9... Qb6 {[%clk 0:00:37.9]} 10. Rc1
{[%clk 0:02:56.9]} 10... dxc4 {[%clk 0:00:35.8]} 11. Bxc4 {[%clk 0:02:58]} 11...
O-O-O {[%clk 0:00:22]} 12. Na4 {[%clk 0:02:25.4]} 12... Qa5+ {[%clk 0:00:17.9]}
13. Bd2 {[%clk 0:02:26]} 13... Qc7 {[%clk 0:00:16]} 14. O-O {[%clk 0:02:26.6]}
14... Nb6 {[%clk 0:00:04.5]} 15. Ba5 {[%clk 0:02:23.5]} 1-0

[Event "*** Titled Tuesday Blitz"]
[Site "Chess.com"]
[Date "2020.02.04"]
[Round "4"]
[White "Zq1"]
[Black "Perecke"]
[Result "1-0"]
[WhiteElo "2547"]
[BlackElo "2279"]
[TimeControl "180+2"]
[EndTime "13:47:40 PST"]
[Termination "Zq1 won by resignation"]

1. d4 {[%clk 0:03:01.9]} 1... d5 {[%clk 0:03:00.6]} 2. c4 {[%clk 0:03:02.5]}
2... e6 {[%clk 0:02:59.8]} 3. Nc3 {[%clk 0:03:03.1]} 3... Nf6 {[%clk 0:03:00.7]}
4. Nf3 {[%clk 0:03:03.7]} 4... Be7 {[%clk 0:03:01.4]} 5. g3 {[%clk 0:03:04.3]}
5... dxc4 {[%clk 0:02:58]} 6. Bg2 {[%clk 0:03:03.5]} 6... O-O {[%clk 0:02:53.4]}
7. Ne5 {[%clk 0:03:04]} 7... c5 {[%clk 0:02:48.3]} 8. dxc5 {[%clk 0:03:03.3]}
8... Bxc5 {[%clk 0:02:50.2]} 9. Qxd8 {[%clk 0:02:59.8]} 9... Rxd8 {[%clk
0:02:49]} 10. Nxc4 {[%clk 0:03:00.1]} 10... Nc6 {[%clk 0:02:45.1]} 11. Bxc6
{[%clk 0:02:59.8]} 11... bxc6 {[%clk 0:02:45.3]} 12. Be3 {[%clk 0:03:00.7]}
12... Bb4 {[%clk 0:02:35.6]} 13. Ne5 {[%clk 0:02:33]} 13... Bxc3+ {[%clk
0:01:18.8]} 14. bxc3 {[%clk 0:02:33.1]} 14... Bb7 {[%clk 0:01:06.7]} 15. O-O
{[%clk 0:02:21.2]} 15... Nd5 {[%clk 0:01:03.5]} 16. c4 {[%clk 0:02:12.9]} 16...
Nxe3 {[%clk 0:01:00.9]} 17. fxe3 {[%clk 0:02:13.9]} 17... f6 {[%clk 0:01:02]}
18. Nd3 {[%clk 0:02:07.7]} 18... e5 {[%clk 0:00:43.6]} 19. Nc5 {[%clk
0:02:05.9]} 19... Rab8 {[%clk 0:00:35.9]} 20. Rfd1 {[%clk 0:02:00.6]} 20... Kf7
{[%clk 0:00:24.8]} 21. Rxd8 {[%clk 0:01:59.6]} 1-0

[Event "*** Titled Tuesday Blitz"]
[Site "Chess.com"]
[Date "2020.02.04"]
[Round "4"]
[White "Region_07"]
[Black "Playgood28"]
[Result "1-0"]
[WhiteElo "2487"]
[BlackElo "2274"]
[TimeControl "180+2"]
[EndTime "13:47:42 PST"]
[Termination "Region_07 won by checkmate"]

1. d4 {[%clk 0:03:01.9]} 1... f5 {[%clk 0:02:59.3]} 2. g4 {[%clk 0:03:00.5]}
2... fxg4 {[%clk 0:02:52.4]} 3. h3 {[%clk 0:03:00.9]} 3... d5 {[%clk 0:02:50]}
4. hxg4 {[%clk 0:02:57.5]} 4... Nf6 {[%clk 0:02:51.1]} 5. Qd3 {[%clk 0:02:53.7]}
5... Nc6 {[%clk 0:02:41.5]} 6. Nf3 {[%clk 0:02:42]} 6... Bxg4 {[%clk 0:02:37.5]}
7. Bf4 {[%clk 0:02:38.9]} 7... e6 {[%clk 0:02:33.4]} 8. a3 {[%clk 0:02:36.7]}
8... Bf5 {[%clk 0:02:32.5]} 9. Qd1 {[%clk 0:02:32.5]} 9... Bd6 {[%clk
0:02:30.2]} 10. Bg5 {[%clk 0:02:31]} 10... Qd7 {[%clk 0:02:18.7]} 11. Nc3 {[%clk
0:02:32.1]} 11... O-O-O {[%clk 0:02:17.4]} 12. e3 {[%clk 0:02:24.5]} 12... h6
{[%clk 0:02:18]} 13. Bf4 {[%clk 0:02:19.7]} 13... g5 {[%clk 0:02:13.7]} 14. Bh2
{[%clk 0:02:14.3]} 14... Rdf8 {[%clk 0:02:13.1]} 15. Bb5 {[%clk 0:02:14.4]}
15... Bg4 {[%clk 0:02:10.5]} 16. Be2 {[%clk 0:02:14.6]} 16... Bxh2 {[%clk
0:02:01.5]} 17. Rxh2 {[%clk 0:02:11.9]} 17... Ne4 {[%clk 0:01:51]} 18. Nxe4
{[%clk 0:02:07.8]} 18... dxe4 {[%clk 0:01:50.9]} 19. Nd2 {[%clk 0:02:07.4]}
19... Bxe2 {[%clk 0:01:47.9]} 20. Qxe2 {[%clk 0:02:09.3]} 20... e5 {[%clk
0:01:47.1]} 21. O-O-O {[%clk 0:02:07.9]} 21... exd4 {[%clk 0:01:45.6]} 22. Nxe4
{[%clk 0:02:07.3]} 22... Qe6 {[%clk 0:01:44.3]} 23. Nc5 {[%clk 0:02:02.2]} 23...
Qe5 {[%clk 0:01:26.2]} 24. Qb5 {[%clk 0:02:01.3]} 24... Nd8 {[%clk 0:01:13.1]}
25. Rxd4 {[%clk 0:01:53.7]} 25... Qxh2 {[%clk 0:01:08.4]} 26. Rxd8+ {[%clk
0:01:53.6]} 26... Kxd8 {[%clk 0:01:05.1]} 27. Qd7# {[%clk 0:01:54.3]} 1-0

[Event "*** Titled Tuesday Blitz"]
[Site "Chess.com"]
[Date "2020.02.04"]
[Round "4"]
[White "Borsuk_Konstantin"]
[Black "colegiodemadrid"]
[Result "1-0"]
[WhiteElo "2532"]
[BlackElo "2365"]
[TimeControl "180+2"]
[EndTime "13:47:59 PST"]
[Termination "Borsuk_Konstantin won by resignation"]

1. d4 {[%clk 0:03:01.9]} 1... Nf6 {[%clk 0:02:59.1]} 2. c4 {[%clk 0:03:02.9]}
2... c5 {[%clk 0:02:58]} 3. d5 {[%clk 0:03:03.5]} 3... b5 {[%clk 0:02:59.3]} 4.
cxb5 {[%clk 0:03:05.4]} 4... a6 {[%clk 0:03:00.1]} 5. b6 {[%clk 0:03:06.7]} 5...
d6 {[%clk 0:03:00.6]} 6. Nc3 {[%clk 0:03:08]} 6... Nbd7 {[%clk 0:03:01.9]} 7.
Nf3 {[%clk 0:03:08]} 7... Rb8 {[%clk 0:03:03.2]} 8. Nd2 {[%clk 0:03:08.1]} 8...
g6 {[%clk 0:03:03.7]} 9. e4 {[%clk 0:03:09]} 9... Bg7 {[%clk 0:03:04.7]} 10. a4
{[%clk 0:03:10.2]} 10... Nxb6 {[%clk 0:03:04.7]} 11. Be2 {[%clk 0:03:09.1]}
11... O-O {[%clk 0:03:04.9]} 12. O-O {[%clk 0:03:10.4]} 12... Nfd7 {[%clk
0:03:02]} 13. Ra3 {[%clk 0:03:07.1]} 13... Na8 {[%clk 0:02:58.6]} 14. Nc4 {[%clk
0:03:06.5]} 14... Rb4 {[%clk 0:02:55.6]} 15. Na2 {[%clk 0:03:03]} 15... Rb8
{[%clk 0:02:29.9]} 16. Qd2 {[%clk 0:02:55]} 16... Bd4 {[%clk 0:02:15.4]} 17. Na5
{[%clk 0:02:48.8]} 17... Ne5 {[%clk 0:02:07.2]} 18. Kh1 {[%clk 0:02:48.1]} 18...
Rb4 {[%clk 0:01:53.3]} 19. f4 {[%clk 0:02:44.9]} 19... Qxa5 {[%clk 0:01:47.6]}
20. fxe5 {[%clk 0:02:43.3]} 20... Bxe5 {[%clk 0:01:44.6]} 21. Nxb4 {[%clk
0:02:31.6]} 21... Qxb4 {[%clk 0:01:36.9]} 22. Qxb4 {[%clk 0:02:03.7]} 22... cxb4
{[%clk 0:01:38.8]} 23. Ra2 {[%clk 0:02:05.1]} 23... a5 {[%clk 0:01:27.4]} 24. b3
{[%clk 0:02:01.8]} 24... f5 {[%clk 0:01:25.8]} 25. Rc2 {[%clk 0:02:01.2]} 25...
Bb7 {[%clk 0:01:21.6]} 26. Bh6 {[%clk 0:01:55.8]} 26... Rf7 {[%clk 0:01:15.1]}
27. exf5 {[%clk 0:01:50.4]} 27... Bxd5 {[%clk 0:01:10.5]} 28. Rc8+ {[%clk
0:01:49.5]} 1-0

[Event "*** Titled Tuesday Blitz"]
[Site "Chess.com"]
[Date "2020.02.04"]
[Round "4"]
[White "TheBigBadChessDad"]
[Black "LADIESGET2KNOWME"]
[Result "0-1"]
[WhiteElo "2319"]
[BlackElo "2503"]
[TimeControl "180+2"]
[EndTime "13:47:59 PST"]
[Termination "LADIESGET2KNOWME won by checkmate"]

1. d4 {[%clk 0:03:01.9]} 1... Nf6 {[%clk 0:03:01.3]} 2. Nf3 {[%clk 0:03:02.8]}
2... e6 {[%clk 0:03:02.8]} 3. Bf4 {[%clk 0:03:03.3]} 3... b6 {[%clk 0:03:04.7]}
4. e3 {[%clk 0:03:04.2]} 4... Bb7 {[%clk 0:03:06.6]} 5. Nbd2 {[%clk 0:03:05.4]}
5... Be7 {[%clk 0:03:08.4]} 6. h3 {[%clk 0:03:05.3]} 6... O-O {[%clk 0:03:10.3]}
7. Bd3 {[%clk 0:03:04.5]} 7... c5 {[%clk 0:03:12.2]} 8. c3 {[%clk 0:03:04.3]}
8... d6 {[%clk 0:03:13.9]} 9. Qe2 {[%clk 0:03:04.9]} 9... Nbd7 {[%clk
0:03:15.5]} 10. O-O {[%clk 0:03:02.1]} 10... Qc7 {[%clk 0:03:16.5]} 11. Bh2
{[%clk 0:03:00.2]} 11... Rfe8 {[%clk 0:03:17.6]} 12. e4 {[%clk 0:03:00.3]} 12...
Nf8 {[%clk 0:03:17.6]} 13. e5 {[%clk 0:02:56.9]} 13... dxe5 {[%clk 0:03:19.5]}
14. dxe5 {[%clk 0:02:46.3]} 14... Nd5 {[%clk 0:03:20.5]} 15. Ne4 {[%clk
0:02:16]} 15... Ng6 {[%clk 0:03:08.3]} 16. Bc2 {[%clk 0:02:13.1]} 16... Red8
{[%clk 0:03:04.1]} 17. Nd6 {[%clk 0:02:02]} 17... Ndf4 {[%clk 0:03:05.2]} 18.
Bxf4 {[%clk 0:01:48.1]} 18... Nxf4 {[%clk 0:03:07.1]} 19. Qe3 {[%clk 0:01:22.9]}
19... Bxd6 {[%clk 0:03:08]} 20. exd6 {[%clk 0:01:16.8]} 20... Qxd6 {[%clk
0:03:08.5]} 21. Rad1 {[%clk 0:01:09.4]} 21... Qc7 {[%clk 0:03:05.9]} 22. Ng5
{[%clk 0:00:46.6]} 22... h6 {[%clk 0:03:06.9]} 23. Ne4 {[%clk 0:00:34.8]} 23...
f5 {[%clk 0:03:08.2]} 24. g3 {[%clk 0:00:20.7]} 24... Nxh3+ {[%clk 0:03:09.3]}
25. Kh2 {[%clk 0:00:21.8]} 25... Rxd1 {[%clk 0:02:18.6]} 26. Rxd1 {[%clk
0:00:21.9]} 26... Ng5 {[%clk 0:02:20.5]} 27. Nxg5 {[%clk 0:00:22.5]} 27... hxg5
{[%clk 0:02:22.4]} 28. Qxg5 {[%clk 0:00:23]} 28... Qc6 {[%clk 0:02:22.3]} 29.
Rg1 {[%clk 0:00:22.4]} 29... Qf3 {[%clk 0:02:22.2]} 30. Qe3 {[%clk 0:00:18.7]}
30... Qh5# {[%clk 0:02:23.6]} 0-1

[Event "*** Titled Tuesday Blitz"]
[Site "Chess.com"]
[Date "2020.02.04"]
[Round "4"]
[White "Kobalia"]
[Black "ElHelvetico"]
[Result "1-0"]
[WhiteElo "2645"]
[BlackElo "2688"]
[TimeControl "180+2"]
[EndTime "13:48:16 PST"]
[Termination "Kobalia won by resignation"]

1. e4 {[%clk 0:03:01.9]} 1... c5 {[%clk 0:03:00.1]} 2. Nf3 {[%clk 0:03:01.8]}
2... d6 {[%clk 0:03:00.6]} 3. Bb5+ {[%clk 0:03:01.5]} 3... Nd7 {[%clk
0:03:00.9]} 4. O-O {[%clk 0:03:01.1]} 4... a6 {[%clk 0:03:01.7]} 5. Bd3 {[%clk
0:03:02]} 5... Ngf6 {[%clk 0:02:59.6]} 6. c3 {[%clk 0:03:00.9]} 6... e6 {[%clk
0:02:55.9]} 7. Bc2 {[%clk 0:03:01]} 7... b5 {[%clk 0:02:57.3]} 8. d4 {[%clk
0:03:01]} 8... Bb7 {[%clk 0:02:58.4]} 9. Qe2 {[%clk 0:02:58.2]} 9... Be7 {[%clk
0:02:57]} 10. Re1 {[%clk 0:02:51.5]} 10... Qc7 {[%clk 0:02:54.8]} 11. Bd3 {[%clk
0:02:47.4]} 11... e5 {[%clk 0:02:44.5]} 12. dxe5 {[%clk 0:02:43]} 12... dxe5
{[%clk 0:02:46.4]} 13. c4 {[%clk 0:02:43.4]} 13... b4 {[%clk 0:02:35.7]} 14.
Nbd2 {[%clk 0:02:41.9]} 14... Nf8 {[%clk 0:02:34.4]} 15. Bc2 {[%clk 0:02:35.6]}
15... Ne6 {[%clk 0:02:33.8]} 16. Ba4+ {[%clk 0:02:35]} 16... Kf8 {[%clk
0:02:26.4]} 17. Nf1 {[%clk 0:02:34.3]} 17... h5 {[%clk 0:02:04.6]} 18. Ne3
{[%clk 0:02:31]} 18... Bxe4 {[%clk 0:02:03.8]} 19. Nd5 {[%clk 0:02:28.1]} 19...
Nxd5 {[%clk 0:01:50.1]} 20. Qxe4 {[%clk 0:02:19.7]} 20... Nb6 {[%clk 0:01:50]}
21. Nxe5 {[%clk 0:02:19.7]} 21... Bf6 {[%clk 0:00:26.7]} 22. Nd7+ {[%clk
0:02:17.8]} 22... Ke7 {[%clk 0:00:27.9]} 23. Bf4 {[%clk 0:01:48.1]} 23... Qc8
{[%clk 0:00:16]} 1-0

[Event "*** Titled Tuesday Blitz"]
[Site "Chess.com"]
[Date "2020.02.04"]
[Round "4"]
[White "iturrizaga"]
[Black "quesfr"]
[Result "1-0"]
[WhiteElo "2854"]
[BlackElo "2057"]
[TimeControl "180+2"]
[EndTime "13:48:40 PST"]
[Termination "iturrizaga won by resignation"]

1. Nf3 {[%clk 0:03:01.9]} 1... d5 {[%clk 0:02:59.8]} 2. c4 {[%clk 0:03:03.8]}
2... e6 {[%clk 0:03:00.4]} 3. g3 {[%clk 0:03:04.7]} 3... Nf6 {[%clk 0:03:00]} 4.
Bg2 {[%clk 0:03:06.6]} 4... Be7 {[%clk 0:03:00.4]} 5. O-O {[%clk 0:03:08.1]}
5... O-O {[%clk 0:03:00.8]} 6. d4 {[%clk 0:03:09.4]} 6... c6 {[%clk 0:02:55.3]}
7. Nc3 {[%clk 0:03:09.4]} 7... b6 {[%clk 0:02:44.8]} 8. b3 {[%clk 0:02:56.3]}
8... Ba6 {[%clk 0:02:38.8]} 9. Bb2 {[%clk 0:02:56.1]} 9... dxc4 {[%clk
0:02:36.2]} 10. bxc4 {[%clk 0:02:53.6]} 10... Bxc4 {[%clk 0:02:29.4]} 11. Ne5
{[%clk 0:02:54.3]} 11... Ba6 {[%clk 0:02:28.4]} 12. Bxc6 {[%clk 0:02:35.1]}
12... Nxc6 {[%clk 0:02:24.7]} 13. Nxc6 {[%clk 0:02:37]} 13... Qe8 {[%clk
0:02:22.9]} 14. Qa4 {[%clk 0:02:37.3]} 14... Bc8 {[%clk 0:02:07.1]} 15. Nxe7+
{[%clk 0:02:34.6]} 15... Qxe7 {[%clk 0:02:07.7]} 16. Ba3 {[%clk 0:02:36.5]}
16... Qb7 {[%clk 0:01:08.9]} 17. Bxf8 {[%clk 0:02:35.4]} 17... Kxf8 {[%clk
0:01:10.8]} 18. Nb5 {[%clk 0:02:30.5]} 18... Bd7 {[%clk 0:01:07.3]} 19. Rac1
{[%clk 0:02:13.1]} 19... Kg8 {[%clk 0:00:58.9]} 20. Qb3 {[%clk 0:02:07.4]} 20...
Bc6 {[%clk 0:00:48.7]} 21. Qc4 {[%clk 0:01:51.6]} 21... Bg2 {[%clk 0:00:40.8]}
22. Rfe1 {[%clk 0:01:47.9]} 22... Bh3 {[%clk 0:00:41.6]} 23. Qc6 {[%clk
0:01:45.1]} 23... Qxc6 {[%clk 0:00:36.8]} 24. Rxc6 {[%clk 0:01:44.9]} 24... h6
{[%clk 0:00:30]} 25. Nd6 {[%clk 0:01:39]} 25... Nd5 {[%clk 0:00:24.4]} 26. a3
{[%clk 0:01:32.4]} 1-0